fUSD/lending_fUSD_20250117
["ID","MTS","AMOUNT","RATE_DAILY","PERIOD"]
[349282597,1737097847295,-503.62410242,0.00024997,2]
[349282598,1737097847305,-500.0,0.00024997,2]
[349282599,1737097847315,-500.0,0.00024997,2]
[349282600,1737097847325,-500.0,0.00024997,2]
[349282601,1737097847336,-441.62118136,0.00024997,2]
[349282602,1737097847346,-500.0,0.00024997,2]
[349282603,1737097847356,-500.0,0.00024997,2]
[349282604,1737097847366,-500.0,0.00024997,2]
[349282605,1737097847375,-500.0,0.00024997,2]
[349282606,1737097847385,-500.0,0.00024997,2]
[349282607,1737097847394,-505.90635214,0.00024997,2]
[349282608,1737097847404,-501.99488626,0.00024997,2]
[349282609,1737097847413,-500.0,0.00024997,2]
[349282610,1737097847422,-500.0,0.00024997,2]
[349282611,1737097847431,-500.0,0.00024997,2]
[349282612,1737097847441,-500.0,0.00024997,2]
[349282613,1737097847452,-500.0,0.00024997,2]
[349282614,1737097847462,-500.0,0.00024997,2]
[349282615,1737097847471,-521.0675816,0.00024997,2]
[349282616,1737097847481,-500.0,0.00024997,2]
[349282617,1737097847491,-507.18183403,0.00024997,2]
[349282618,1737097847500,-503.65196484,0.00024997,2]
[349282619,1737097847510,-500.0,0.00024997,2]
[349282620,1737097847520,-500.0,0.00024997,2]
[349282621,1737097847530,-500.0,0.00024997,2]
[349282622,1737097847540,-640.580314,0.00024997,2]
[349282623,1737097847551,-500.0,0.00024997,2]
[349282624,1737097847560,-500.0,0.00024997,2]
[349282625,1737097847571,-515.82364277,0.00024997,2]
[349282626,1737097847581,-500.0,0.00024997,2]
[349282627,1737097847591,-500.0,0.00024997,2]
[349282628,1737097847601,-522.66077111,0.00024997,2]
[349282629,1737097847611,-500.0,0.00024997,2]
[349282630,1737097847621,-500.0,0.00024997,2]
[349282631,1737097847632,-519.68447769,0.00024997,2]
[349282632,1737097847642,-502.74231227,0.00024997,2]
[349282633,1737097847652,-506.14822618,0.00024997,2]
[349282634,1737097847661,-520.4520618,0.00024997,2]
[349282635,1737097847671,-500.0,0.00024997,2]
[349282636,1737097847681,-500.0,0.00024997,2]
[349282637,1737097847691,-500.0,0.00024997,2]
[349282638,1737097847701,-500.0,0.00024997,2]
[349282639,1737097847710,-501.22733109,0.00024997,2]
[349282640,1737097847720,-501.55356893,0.00024997,2]
[349282641,1737097847730,-500.0,0.00024997,2]
[349282642,1737097847739,-500.0,0.00024997,2]
[349282643,1737097847749,-500.0,0.00024997,2]
[349282644,1737097847759,-500.0,0.00024997,2]
[349282645,1737097847769,-480.75027572,0.00024997,2]
[349282646,1737097847778,-503.28247705,0.00024997,2]
[349282647,1737097847788,-500.0,0.00024997,2]
[349282648,1737097847797,-524.86354127,0.00024997,2]
[349282649,1737097847807,-500.0,0.00024997,2]
[349282650,1737097847817,-500.0,0.00024997,2]
[349282651,1737097847826,-500.0,0.00024997,2]
[349282652,1737097847837,-500.0,0.00024997,2]
[349282653,1737097847846,-501.12107444,0.00024997,2]
[349282654,1737097847855,-4257.67,0.00024997,2]
[349282655,1737097847865,-500.0,0.00024997,2]
[349282656,1737097847875,-501.20726664,0.00024997,2]
[349282657,1737097847884,-500.0,0.00024997,2]
[349282658,1737097847894,-500.0,0.00024997,2]
[349282659,1737097847903,-500.0,0.00024997,2]
[349282660,1737097847913,-500.0,0.00024997,2]
[349282661,1737097847923,-500.0,0.00024997,2]
[349282662,1737097847933,-500.0,0.00024997,2]
[349282663,1737097847943,-500.0,0.00024997,2]
[349282664,1737097847953,-500.0,0.00024997,2]
[349282665,1737097847962,-360.14870831,0.00024997,2]
[349282666,1737097847972,-500.0,0.00024997,2]
[349282667,1737097847982,-526.15271236,0.00024997,2]
[349282668,1737097847991,-537.70861206,0.00024997,2]
[349282669,1737097848001,-518.89807701,0.00024997,2]
[349282670,1737097848010,-500.0,0.00024997,2]
[349282671,1737097848020,-518.00145968,0.00024997,2]
[349282672,1737097848030,-500.0,0.00024997,2]
[349282673,1737097848040,-500.0,0.00024997,2]
[349282674,1737097848050,-501.81239221,0.00024997,2]
[349282675,1737097848059,-500.0,0.00024997,2]
[349282676,1737097848069,-503.69707442,0.00024997,2]
[349282677,1737097848078,-521.66211169,0.00024997,2]
[349282678,1737097848088,-500.0,0.00024997,2]
[349282679,1737097848098,-504.48792642,0.00024997,2]
[349282680,1737097848108,-500.0,0.00024997,2]
[349282681,1737097848119,-507.91677668,0.00024997,2]
[349282682,1737097848129,-500.0,0.00024997,2]
[349282683,1737097848139,-500.0,0.00024997,2]
[349282684,1737097848148,-500.0,0.00024997,2]
[349282685,1737097848158,-500.0,0.00024997,2]
[349282686,1737097848168,-500.0,0.00024997,2]
[349282687,1737097848177,-504.03684539,0.00024997,2]
[349282688,1737097848189,-500.0,0.00024997,2]
[349282689,1737097848201,-500.0,0.00024997,2]
[349282690,1737097848211,-502.16307691,0.00024997,2]
[349282691,1737097848221,-500.0,0.00024997,2]
[349282692,1737097848233,-500.0,0.00024997,2]
[349282693,1737097848243,-508.70181311,0.00024997,2]
[349282694,1737097848253,-500.0,0.00024997,2]
[349282695,1737097848263,-500.0,0.00024997,2]
[349282696,1737097848273,-500.0,0.00024997,2]
[349282697,1737097848283,-170.91919624,0.00024997,2]
[349282698,1737097848293,-500.0,0.00024997,2]
[349282699,1737097848303,-500.0,0.00024997,2]
[349282700,1737097848313,-500.0,0.00024997,2]
[349282701,1737097848323,-500.0,0.00024997,2]
[349282702,1737097848334,-500.0,0.00024997,2]
[349282703,1737097848344,-500.0,0.00024997,2]
[349282704,1737097848354,-646.97829752,0.00024997,2]
[349282705,1737097848363,-500.0,0.00024997,2]
[349282706,1737097848374,-500.0,0.00024997,2]
[349282707,1737097848384,-506.80477559,0.00024997,2]
[349282708,1737097848394,-500.0,0.00024997,2]
[349282709,1737097848404,-501.36016311,0.00024997,2]
[349282710,1737097848414,-508.28544707,0.00024997,2]
[349282711,1737097848424,-500.0,0.00024997,2]
[349282712,1737097848434,-252.45510089,0.00024997,2]
[349282713,1737097848445,-500.0,0.00024997,2]
[349282714,1737097848454,-509.30416846,0.00024997,2]
[349282715,1737097848464,-500.0,0.00024997,2]
[349282716,1737097848474,-500.0,0.00024997,2]
[349282717,1737097848483,-500.0,0.00024997,2]
[349282718,1737097848493,-506.64605231,0.00024997,2]
[349282719,1737097848502,-500.0,0.00024997,2]
[349282720,1737097848511,-157.41529117,0.00024997,2]
[349282721,1737097848521,-500.0,0.00024997,2]
[349282722,1737097848531,-510.02172807,0.00024997,2]
[349282723,1737097848540,-500.0,0.00024997,2]
[349282724,1737097848550,-500.0,0.00024997,2]
[349282725,1737097848559,-500.0,0.00024997,2]
[349282726,1737097848569,-561.04270112,0.00024997,2]
[349282727,1737097848579,-500.0,0.00024997,2]
[349282728,1737097848589,-503.22569305,0.00024997,2]
[349282729,1737097848598,-500.0,0.00024997,2]
[349282730,1737097848608,-500.0,0.00024997,2]
[349282731,1737097848618,-500.0,0.00024997,2]
[349282732,1737097848629,-565.9677461,0.00024997,2]
[349282733,1737097848639,-500.0,0.00024997,2]
[349282734,1737097848649,-509.22627508,0.00024997,2]
[349282735,1737097848658,-506.2600104,0.00024997,2]
[349282736,1737097848668,-500.0,0.00024997,2]
[349282737,1737097848677,-1240.03,0.00024997,2]
[349282738,1737097848687,-500.0,0.00024997,2]
[349282739,1737097848696,-500.0,0.00024997,2]
[349282740,1737097848705,-507.6141502,0.00024997,2]
[349282741,1737097848715,-500.0,0.00024997,2]
[349282742,1737097848724,-500.0,0.00024997,2]
[349282743,1737097848734,-864.07,0.00024997,2]
[349282744,1737097848743,-500.0,0.00024997,2]
[349282745,1737097848752,-626.53,0.00024997,2]
[349282746,1737097848762,-500.0,0.00024997,2]
[349282747,1737097848771,-500.0,0.00024997,2]
[349282748,1737097848781,-500.0,0.00024997,2]
[349282749,1737097848790,-500.0,0.00024997,2]
[349282750,1737097848799,-500.0,0.00024997,2]
[349282751,1737097848809,-497.26329031,0.00024997,2]
[349282752,1737097848818,-500.0,0.00024997,2]
[349282753,1737097848828,-500.0,0.00024997,2]
[349282754,1737097848838,-503.65107906,0.00024997,2]
[349282755,1737097848847,-500.0,0.00024997,2]
[349282756,1737097848856,-500.0,0.00024997,2]
[349282757,1737097848866,-501.98276658,0.00024997,2]
[349282758,1737097848875,-977.91,0.00024997,2]
[349282759,1737097848885,-504.57192912,0.00024997,2]
[349282760,1737097848895,-500.0,0.00024997,2]
[349282761,1737097848904,-506.56282964,0.00024997,2]
[349282762,1737097848913,-500.0,0.00024997,2]
[349282763,1737097848923,-500.0,0.00024997,2]
[349282764,1737097848933,-500.0,0.00024997,2]
[349282765,1737097848943,-500.0,0.00024997,2]
[349282766,1737097848953,-500.0,0.00024997,2]
[349282767,1737097848962,-827.17,0.00024997,2]
[349282768,1737097848973,-500.0,0.00024997,2]
[349282769,1737097848983,-258.85,0.00024997,2]
[349282770,1737097848993,-500.0,0.00024997,2]
[349282771,1737097849003,-500.0,0.00024997,2]
[349282772,1737097849013,-500.0,0.00024997,2]
[349282773,1737097849023,-504.63952802,0.00024997,2]
[349282774,1737097849034,-500.0,0.00024997,2]
[349282775,1737097849044,-500.0,0.00024997,2]
[349282776,1737097849054,-500.0,0.00024997,2]
[349282777,1737097849065,-500.0,0.00024998,2]
[349282778,1737097849075,-500.0,0.00024998,2]
[349282779,1737097849085,-500.0,0.00024998,2]
[349282780,1737097849095,-501.93321871,0.00024998,2]
[349282781,1737097849105,-301.60399613,0.00024998,2]
[349282782,1737097849115,-500.0,0.00024998,2]
[349282783,1737097849125,-500.0,0.00024998,2]
[349282784,1737097849135,-529.5452856,0.00024998,2]
[349282785,1737097849145,-500.0,0.00024998,2]
[349282786,1737097849155,-157.146168,0.00024998,2]
[349282787,1737097849165,-500.0,0.00024998,2]
[349282788,1737097849174,-459.63734279,0.00024998,2]
[349282789,1737097849185,-500.0,0.00024998,2]
[349282790,1737097849197,-500.0,0.00024998,2]
[349282791,1737097849207,-500.0,0.00024998,2]
[349282792,1737097849217,-542.17,0.00024998,2]
[349282793,1737097849227,-500.0,0.00024998,2]
[349282794,1737097849238,-500.0,0.00024998,2]
[349282795,1737097849250,-500.0,0.00024998,2]
[349282796,1737097849260,-502.24007811,0.00024998,2]
[349282797,1737097849271,-500.0,0.00024998,2]
[349282798,1737097849282,-500.0,0.00024998,2]
[349282799,1737097849292,-398.36353021,0.00024998,2]
[349282800,1737097849303,-500.0,0.00024998,2]
[349282801,1737097849312,-500.0,0.00024998,2]
[349282802,1737097849321,-500.0,0.00024998,2]
[349282803,1737097849331,-500.0,0.00024998,2]
[349282804,1737097849342,-500.0,0.00024998,2]
[349282805,1737097849353,-500.0,0.00024998,2]
[349282806,1737097849364,-504.39074603,0.00024998,2]
[349282807,1737097849374,-500.0,0.00024998,2]
[349282808,1737097849384,-500.0,0.00024998,2]
[349282809,1737097849394,-500.0,0.00024998,2]
[349282810,1737097849405,-500.0,0.00024998,2]
[349282811,1737097849414,-500.0,0.00024998,2]
[349282812,1737097849424,-500.0,0.00024998,2]
[349282813,1737097849434,-500.0,0.00024998,2]
[349282814,1737097849444,-606.2187505,0.00024998,2]
[349282815,1737097849453,-500.0,0.00024998,2]
[349282816,1737097849463,-500.0,0.00024998,2]
[349282817,1737097849472,-500.0,0.00024998,2]
[349282818,1737097849481,-500.0,0.00024998,2]
[349282819,1737097849491,-625.0,0.00024998,2]
[349282820,1737097849500,-500.0,0.00024998,2]
[349282821,1737097849510,-500.0,0.00024998,2]
[349282822,1737097849519,-500.0,0.00024998,2]
[349282823,1737097849529,-500.0,0.00024998,2]
[349282824,1737097849538,-500.0,0.00024998,2]
[349282825,1737097849548,-500.0,0.00024998,2]
[349282826,1737097849558,-500.0,0.00024998,2]
[349282827,1737097849570,-500.0,0.00024998,2]
[349282828,1737097849580,-500.0,0.00024998,2]
[349282829,1737097849590,-500.0,0.00024998,2]
[349282830,1737097849789,-500.0,0.00024998,2]
[349282831,1737097849799,-507.25778466,0.00024998,2]
[349282832,1737097849808,-500.0,0.00024998,2]
[349282833,1737097849818,-500.0,0.00024998,2]
[349282834,1737097849827,-500.0,0.00024998,2]
[349282835,1737097849837,-500.0,0.00024998,2]
[349282836,1737097849847,-500.0,0.00024998,2]
[349282837,1737097849856,-500.0,0.00024998,2]
[349282838,1737097849866,-500.0,0.00024998,2]
[349282839,1737097849875,-500.0,0.00024998,2]
[349282840,1737097849884,-500.0,0.00024998,2]
[349282841,1737097849893,-500.0,0.00024998,2]
[349282842,1737097849903,-500.0,0.00024998,2]
[349282843,1737097849914,-500.0,0.00024998,2]
[349282844,1737097849923,-500.0,0.00024998,2]
[349282845,1737097849932,-500.0,0.00024998,2]
[349282846,1737097849942,-500.0,0.00024998,2]
[349282847,1737097849952,-500.0,0.00024998,2]
[349282848,1737097849961,-500.0,0.00024998,2]
[349282849,1737097849970,-500.0,0.00024998,2]
[349282850,1737097849980,-500.0,0.00024998,2]
[349282851,1737097849991,-500.0,0.00024998,2]
[349282852,1737097850000,-500.0,0.00024998,2]
[349282853,1737097850010,-500.0,0.00024998,2]
[349282854,1737097850020,-500.0,0.00024998,2]
[349282855,1737097850031,-546.92763775,0.00024998,2]
[349282856,1737097850040,-500.0,0.00024998,2]
[349282857,1737097850050,-500.0,0.00024998,2]
[349282858,1737097850060,-500.0,0.00024998,2]
[349282859,1737097850069,-500.0,0.00024998,2]
[349282860,1737097850078,-500.0,0.00024998,2]
[349282861,1737097850088,-500.0,0.00024998,2]
[349282862,1737097850098,-500.0,0.00024998,2]
[349282863,1737097850108,-500.0,0.00024998,2]
[349282864,1737097850117,-500.0,0.00024998,2]
[349282865,1737097850127,-490.98332384,0.00024998,2]
[349282866,1737097850136,-500.0,0.00024998,2]
[349282867,1737097850146,-501.21000362,0.00024998,2]
[349282868,1737097850155,-500.0,0.00024998,2]
[349282869,1737097850165,-500.0,0.00024998,2]
[349282870,1737097850174,-500.0,0.00024998,2]
[349282871,1737097850185,-500.0,0.00024998,2]
[349282872,1737097850197,-500.0,0.00024998,2]
[349282873,1737097850206,-500.0,0.00024998,2]
[349282874,1737097850215,-500.0,0.00024998,2]
[349282875,1737097850225,-504.59142475,0.00024998,2]
[349282876,1737097850235,-500.0,0.00024998,2]
[349282877,1737097850247,-500.0,0.00024998,2]
[349282878,1737097850257,-500.0,0.00024998,2]
[349282879,1737097850267,-500.0,0.00024998,2]
[349282880,1737097850277,-500.0,0.00024998,2]
[349282881,1737097850286,-504.04824615,0.00024998,2]
[349282882,1737097850296,-580.05765354,0.00024998,2]
[349282883,1737097850305,-327.67022156,0.00024998,2]
[349282884,1737097850347,-172.32977844,0.00024998,2]
[349282885,1737097850357,-500.0,0.00024998,2]
[349282886,1737097850368,-500.0,0.00024998,2]
[349282887,1737097850377,-500.0,0.00024998,2]
[349282888,1737097850387,-171.24334976,0.00024998,2]
[349282890,1737097932101,157.96,0.00010137,2]
[349282897,1737098719965,307.62864286,9e-05,2]
[349282898,1737098826092,-197.54,0.00012329,2]
[349282899,1737098826113,-1327.69191475,0.00014888,2]
[349282900,1737098827106,-73.29544242,0.00014888,2]
[349282901,1737098827128,-432.38116118,0.00016672,2]
[349282902,1737098827150,-328.88174635,0.00016712,2]
[349282903,1737098870465,153.7,0.00010137,2]
[349282908,1737098949097,-157.96,0.00016813,2]
[349282909,1737098949119,-3077.59414622,0.00019948,2]
[349282910,1737098950091,-7183.49020968,0.00019948,2]
[349282911,1737098950113,-153.7,0.00020708,2]
[349282912,1737098950134,-152.89709931,0.00021388,2]
[349282916,1737099032126,-350.94290069,0.00021388,2]
[349282917,1737099032135,-2344.03760306,0.00023165,2]
[349282918,1737099032145,-200.0,0.00023265,2]
[349282920,1737099032155,-562.88,0.00023265,2]
[349282922,1737099032165,-250.0,0.00023299,2]
[349282924,1737099032175,-500.0,0.00023321,2]
[349282925,1737099032185,-1000.0,0.00023323,2]
[349282926,1737099032195,-29999.99,0.00023335,2]
[349282927,1737099032205,-1077.26,0.00023336,2]
[349282928,1737099032216,-500.0,0.00023342,2]
[349282929,1737099032226,-157.96,0.0002349,2]
[349282930,1737099032235,-211.552,0.0002349,4]
[349282931,1737099032244,-1846.083,0.0002349,4]
[349282932,1737099032254,-511.4892403,0.00023511,2]
[349282933,1737099032263,-431.3305861,0.00023612,3]
[349282934,1737099032272,-500.0,0.00023612,2]
[349282935,1737099032281,-503.84,0.00023652,2]
[349282936,1737099032291,-55.1671869,0.00023879,2]
[349282937,1737099032304,-728.5828131,0.00023879,2]
[349282938,1737099032314,-783.75,0.00023885,2]
[349282939,1737099032324,-783.75,0.00023892,2]
[349282940,1737099032335,-341.0395125,0.00023898,2]
[349282941,1737099032347,-442.7104875,0.00023898,2]
[349282942,1737099032358,-3870.1022,0.000239,2]
[349282943,1737099032368,-783.75,0.00023904,2]
[349282944,1737099032377,-783.75,0.0002391,2]
[349282945,1737099032387,-783.75,0.00023917,2]
[349282946,1737099032397,-783.75,0.00023923,2]
[349282947,1737099032407,-783.75,0.00023929,2]
[349282948,1737099032418,-783.75,0.00023936,2]
[349282949,1737099032429,-783.75,0.00023942,2]
[349282950,1737099032439,-783.75,0.00023948,2]
[349282951,1737099032449,-783.75,0.00023954,2]
[349282952,1737099032459,-469.51826486,0.00023961,2]
[349282953,1737099032480,-314.23173514,0.00023961,2]
[349282954,1737099032489,-783.75,0.00023967,2]
[349282955,1737099032499,-499.0521323,0.00023973,2]
[349282956,1737099032509,-783.75,0.00023973,2]
[349282957,1737099032518,-639.47702856,0.00023979,2]
[349282958,1737099032531,-144.27297144,0.00023979,2]
[349282959,1737099032541,-783.75,0.00023986,2]
[349282960,1737099032556,-71.97702856,0.00023992,2]
[349282961,1737099032573,-711.77297144,0.00023992,2]
[349282962,1737099032583,-783.75,0.00023998,2]
[349282963,1737099032595,-2201.57792837,0.00024,5]
[349282964,1737099032625,-34770.67310625,0.00024,5]
[349282965,1737099032634,-250.0,0.00024101,2]
[349282966,1737099032645,-500.0,0.000242,8]
[349282967,1737099032655,-1100.0,0.000243,8]
[349282968,1737099032665,-1700.0,0.000244,8]
[349282969,1737099032675,-2300.0,0.000245,8]
[349282970,1737099032684,-2559.0,0.000246,3]
[349282971,1737099032695,-2900.0,0.000246,8]
[349282972,1737099032704,-500.0,0.00024657,14]
[349282973,1737099032715,-300.0,0.00024673,2]
[349282974,1737099032725,-267.60346781,0.000247,2]
[349282975,1737099032735,-1000.0,0.000247,2]
[349282976,1737099032745,-500.0,0.000247,9]
[349282977,1737099032754,-601.0,0.00024747,2]
[349282978,1737099032763,-2784.58965,0.0002475,2]
[349282979,1737099032773,-150.0,0.00024757,2]
[349282980,1737099032783,-500.0,0.00024799,2]
[349282981,1737099032792,-500.0,0.000248,9]
[349282982,1737099032802,-5800.0,0.00024841,2]
[349282983,1737099032812,-534.2499,0.00024896,2]
[349282984,1737099032822,-2500.0,0.00024896,2]
[349282985,1737099032831,-162.40908237,0.00024896,2]
[349282986,1737099032841,-162.40908237,0.00024897,2]
[349282987,1737099032851,-162.40908237,0.00024897,2]
[349282988,1737099032861,-162.40908237,0.00024898,2]
[349282989,1737099032871,-1000.0,0.00024898,2]
[349282990,1737099032881,-500.0,0.00024898,2]
[349282991,1737099032891,-903.16114553,0.00024898,2]
[349282992,1737099032904,-650.432,0.00024898,2]
[349282993,1737099032916,-2595.56055447,0.00024898,2]
[349282994,1737099032926,-4716.49263625,0.00024898,2]
[349282995,1737099032938,-5764.83045,0.00024898,2]
[349282996,1737099032949,-3332.6871248,0.00024898,2]
[349282997,1737099032961,-6897.6099792,0.00024898,2]
[349282998,1737099032976,-1244.15535,0.00024898,2]
[349282999,1737099032988,-1568.49349,0.00024898,2]
[349283000,1737099033000,-10865.00266975,0.00024898,2]
[349283001,1737099033010,-220.0,0.00024898,2]
[349283002,1737099033020,-162.40908237,0.00024899,2]
[349283003,1737099033029,-170.75392106,0.00024899,2]
[349283004,1737099033039,-162.40908237,0.00024899,2]
[349283005,1737099033049,-500.0,0.000249,9]
[349283006,1737099033059,-162.40908237,0.000249,2]
[349283007,1737099033069,-212.41610956,0.000249,2]
[349283008,1737099033081,-153.0,0.00024924,2]
[349283009,1737099033091,-153.0,0.00024924,2]
[349283010,1737099033102,-153.0,0.00024924,2]
[349283011,1737099033112,-153.0,0.00024924,2]
[349283012,1737099033122,-153.0,0.00024924,2]
[349283013,1737099033132,-153.0,0.00024924,2]
[349283014,1737099033144,-153.0,0.00024924,2]
[349283015,1737099033154,-153.0,0.00024924,2]
[349283016,1737099033165,-153.0,0.00024924,2]
[349283017,1737099033175,-153.0,0.00024924,2]
[349283018,1737099033197,-153.0,0.00024924,2]
[349283019,1737099033208,-153.0,0.00024924,2]
[349283020,1737099033219,-153.0,0.00024924,2]
[349283021,1737099033230,-153.0,0.00024924,2]
[349283022,1737099033240,-153.0,0.00024924,2]
[349283023,1737099033250,-437.34,0.00024932,2]
[349283024,1737099033262,-153.0,0.0002494,2]
[349283025,1737099033272,-153.0,0.0002494,2]
[349283026,1737099033282,-153.0,0.0002494,2]
[349283027,1737099033293,-153.0,0.0002494,2]
[349283028,1737099033303,-57.53596471,0.0002494,2]
[349283029,1737099033321,-95.46403529,0.0002494,2]
[349283030,1737099033332,-153.0,0.0002494,2]
[349283031,1737099033341,-153.0,0.0002494,2]
[349283032,1737099033351,-153.0,0.0002494,2]
[349283033,1737099033360,-153.0,0.0002494,2]
[349283034,1737099033371,-153.0,0.0002494,2]
[349283035,1737099033381,-153.0,0.0002494,2]
[349283036,1737099033392,-153.0,0.0002494,2]
[349283037,1737099033402,-153.0,0.0002494,2]
[349283038,1737099033413,-2.7562605,0.0002494,2]
[349283039,1737099033426,-150.2437395,0.0002494,2]
[349283040,1737099033436,-153.0,0.0002494,2]
[349283041,1737099033446,-153.0,0.0002494,2]
[349283042,1737099033456,-153.0,0.0002494,2]
[349283043,1737099033465,-153.0,0.0002494,2]
[349283044,1737099033475,-153.0,0.0002494,2]
[349283045,1737099033485,-153.0,0.0002494,2]
[349283046,1737099033496,-153.0,0.00024941,2]
[349283047,1737099033506,-153.0,0.00024941,2]
[349283048,1737099033518,-153.0,0.00024941,2]
[349283049,1737099033528,-153.0,0.00024941,2]
[349283050,1737099033538,-153.0,0.00024941,2]
[349283051,1737099033552,-153.0,0.00024941,2]
[349283052,1737099033562,-153.0,0.00024941,2]
[349283053,1737099033572,-153.0,0.00024941,2]
[349283054,1737099033582,-153.0,0.00024941,2]
[349283055,1737099033592,-153.0,0.00024941,2]
[349283056,1737099033602,-153.0,0.00024941,2]
[349283057,1737099033613,-153.0,0.00024941,2]
[349283058,1737099033625,-153.0,0.00024941,2]
[349283059,1737099033637,-153.0,0.00024941,2]
[349283060,1737099033657,-153.0,0.00024941,2]
[349283061,1737099033668,-153.0,0.00024941,2]
[349283062,1737099033679,-153.0,0.00024941,2]
[349283063,1737099033690,-153.0,0.00024941,2]
[349283064,1737099033700,-153.0,0.00024941,2]
[349283065,1737099033711,-153.0,0.00024941,2]
[349283066,1737099033722,-153.0,0.00024941,2]
[349283067,1737099033732,-153.0,0.00024941,2]
[349283068,1737099033743,-153.0,0.00024941,2]
[349283069,1737099033753,-153.0,0.00024941,2]
[349283070,1737099033763,-153.0,0.00024941,2]
[349283071,1737099033783,-153.0,0.00024941,2]
[349283072,1737099033806,-153.0,0.00024941,2]
[349283073,1737099033819,-153.0,0.00024941,2]
[349283074,1737099033830,-153.0,0.00024941,2]
[349283075,1737099033839,-153.0,0.00024941,2]
[349283076,1737099033849,-500.0,0.00024973,2]
[349283077,1737099033861,-151.8132122,0.00024973,2]
[349283078,1737099033875,-500.0,0.00024973,2]
[349283079,1737099033884,-424.42727959,0.00024973,2]
[349283080,1737099033894,-500.0,0.00024973,2]
[349283081,1737099033904,-500.0,0.00024973,2]
[349283082,1737099033914,-300.99732252,0.00024982,2]
[349283083,1737099033924,-180.1,0.00024986,2]
[349283084,1737099033934,-180.1,0.00024987,2]
[349283085,1737099033945,-194.5,0.0002499,30]
[349283086,1737099033954,-1546.10351669,0.00024991,2]
[349283087,1737099034094,-9344.40176261,0.00024991,2]
[349283088,1737099034104,-500.0,0.00024995,2]
[349283089,1737099034114,-500.0,0.00024995,2]
[349283090,1737099034123,-500.0,0.00024995,2]
[349283091,1737099034133,-500.0,0.00024995,2]
[349283092,1737099034142,-500.0,0.00024995,2]
[349283093,1737099034152,-500.0,0.00024995,2]
[349283094,1737099034162,-138.36182907,0.00024995,2]
[349283095,1737099034175,-361.63817093,0.00024995,2]
[349283096,1737099034184,-500.0,0.00024995,2]
[349283097,1737099034193,-209.06182907,0.00024995,2]
[349283105,1737099038017,-2094.62638178,0.000249,2]
[349283106,1737099038028,-3135.2049317,0.00024991,2]
[349283107,1737099038039,-290.93817093,0.00024995,2]
[349283108,1737099038049,-500.0,0.00024995,2]
[349283109,1737099038059,-3902.86,0.00024995,2]
[349283110,1737099038069,-500.0,0.00024995,2]
[349283111,1737099038078,-500.0,0.00024995,2]
[349283112,1737099038088,-500.0,0.00024995,2]
[349283113,1737099038098,-500.0,0.00024995,2]
[349283114,1737099038107,-500.0,0.00024995,2]
[349283115,1737099038117,-500.0,0.00024995,2]
[349283116,1737099038127,-500.0,0.00024995,2]
[349283117,1737099038137,-500.0,0.00024995,2]
[349283118,1737099038148,-500.0,0.00024995,2]
[349283119,1737099038158,-500.0,0.00024995,2]
[349283120,1737099038168,-500.0,0.00024995,2]